[Event "Early-Titled-Tuesday-Blitz-February-13-2024"]
[Site "Chess.com"]
[Date "2024.02.13"]
[Round "4"]
[White "vi_pranav"]
[Black "ChristianArca"]
[Result "1-0"]
[WhiteElo "3045"]
[BlackElo "2732"]
[TimeControl "180+1"]
[EndTime "8:41:05 PST"]
[Termination "vi_pranav won by resignation"]

1. e4 {[%clk 0:03:00.9]} 1... c6 {[%clk 0:02:59.5]} 2. d4 {[%clk 0:03:00]} 2...
d5 {[%clk 0:03:00.4]} 3. e5 {[%clk 0:03:00.8]} 3... Bf5 {[%clk 0:03:00.6]} 4.
Nf3 {[%clk 0:03:01.2]} 4... e6 {[%clk 0:03:00.6]} 5. Be2 {[%clk 0:03:01.9]} 5...
Nd7 {[%clk 0:03:00.7]} 6. O-O {[%clk 0:03:02.2]} 6... Ne7 {[%clk 0:03:01.4]} 7.
c3 {[%clk 0:03:01.3]} 7... c5 {[%clk 0:03:01.8]} 8. dxc5 {[%clk 0:03:00.3]} 8...
Nc6 {[%clk 0:03:01.6]} 9. b4 {[%clk 0:02:58.8]} 9... Ndxe5 {[%clk 0:03:00.3]}
10. Nd4 {[%clk 0:02:57.5]} 10... Bg6 {[%clk 0:02:53.6]} 11. f4 {[%clk
0:02:49.5]} 11... Nd7 {[%clk 0:02:43.2]} 12. Bb5 {[%clk 0:02:47.3]} 12... Nxd4
{[%clk 0:02:31]} 13. Qxd4 {[%clk 0:02:46.7]} 13... Qc7 {[%clk 0:02:27.2]} 14.
Be3 {[%clk 0:02:43.4]} 14... O-O-O {[%clk 0:02:24.7]} 15. Nd2 {[%clk 0:02:36.2]}
15... Be7 {[%clk 0:02:24.9]} 16. Nf3 {[%clk 0:02:35.2]} 16... f6 {[%clk
0:02:20]} 17. a4 {[%clk 0:02:25.8]} 17... Nb8 {[%clk 0:02:20.3]} 18. Qd1 {[%clk
0:02:15.4]} 18... e5 {[%clk 0:02:16.2]} 19. fxe5 {[%clk 0:01:52.2]} 19... fxe5
{[%clk 0:02:17.1]} 20. Qe1 {[%clk 0:01:19.8]} 20... a6 {[%clk 0:02:14.3]} 21.
Be2 {[%clk 0:01:17.5]} 21... Bf6 {[%clk 0:02:13]} 22. b5 {[%clk 0:01:16.7]}
22... d4 {[%clk 0:02:13.3]} 23. Bd2 {[%clk 0:01:14.6]} 23... d3 {[%clk
0:02:08.5]} 24. Bd1 {[%clk 0:01:13.1]} 24... axb5 {[%clk 0:02:05.4]} 25. axb5
{[%clk 0:01:08]} 25... e4 {[%clk 0:02:06]} 26. Nd4 {[%clk 0:01:06.5]} 26... Rxd4
{[%clk 0:02:05.3]} 27. cxd4 {[%clk 0:00:59.7]} 27... Bxd4+ {[%clk 0:02:06.2]}
28. Kh1 {[%clk 0:00:59.8]} 28... Bxa1 {[%clk 0:02:06.5]} 29. Bg4+ {[%clk
0:00:59.2]} 29... Nd7 {[%clk 0:02:06.6]} 30. Qxa1 {[%clk 0:00:58.2]} 30... Re8
{[%clk 0:01:43.1]} 31. Bf4 {[%clk 0:00:53.6]} 31... Qxf4 {[%clk 0:01:29.1]} 32.
Rxf4 {[%clk 0:00:50.9]} 32... e3 {[%clk 0:01:30]} 33. c6 {[%clk 0:00:39.7]} 1-0

[Event "Early-Titled-Tuesday-Blitz-February-13-2024"]
[Site "Chess.com"]
[Date "2024.02.13"]
[Round "4"]
[White "gxbg2000"]
[Black "jero888"]
[Result "0-1"]
[WhiteElo "2071"]
[BlackElo "2280"]
[TimeControl "180+1"]
[EndTime "8:41:06 PST"]
[Termination "jero888 won by resignation"]

1. e4 {[%clk 0:03:00.9]} 1... c5 {[%clk 0:02:43]} 2. Nf3 {[%clk 0:03:00]} 2...
d6 {[%clk 0:02:42.2]} 3. d4 {[%clk 0:03:00]} 3... cxd4 {[%clk 0:02:42.9]} 4.
Nxd4 {[%clk 0:03:00.4]} 4... Nf6 {[%clk 0:02:43.5]} 5. Nc3 {[%clk 0:02:59.9]}
5... Nc6 {[%clk 0:02:44.2]} 6. Be3 {[%clk 0:02:59.8]} 6... Ng4 {[%clk
0:02:43.9]} 7. Qf3 {[%clk 0:02:58.5]} 7... Nxe3 {[%clk 0:02:40.8]} 8. Qxe3
{[%clk 0:02:58.7]} 8... g6 {[%clk 0:02:11.5]} 9. Bd3 {[%clk 0:02:49.1]} 9... Bg7
{[%clk 0:02:09.7]} 10. Nce2 {[%clk 0:02:49.1]} 10... O-O {[%clk 0:02:07.8]} 11.
c3 {[%clk 0:02:49.1]} 11... a5 {[%clk 0:02:04.3]} 12. O-O {[%clk 0:02:48.2]}
12... a4 {[%clk 0:02:03.2]} 13. a3 {[%clk 0:02:47.8]} 13... Ra5 {[%clk
0:02:01.6]} 14. Rad1 {[%clk 0:02:44.9]} 14... Qb6 {[%clk 0:01:59.2]} 15. Rd2
{[%clk 0:02:38.9]} 15... Ne5 {[%clk 0:01:09.5]} 16. h3 {[%clk 0:02:31]} 16...
Nxd3 {[%clk 0:01:09.2]} 17. Qxd3 {[%clk 0:02:30.7]} 17... Bd7 {[%clk 0:01:09.2]}
18. Qe3 {[%clk 0:02:23.3]} 18... Rc8 {[%clk 0:01:03.7]} 19. Rfd1 {[%clk
0:02:20.6]} 19... Bc6 {[%clk 0:00:59.7]} 20. Nxc6 {[%clk 0:02:19]} 20... Rxc6
{[%clk 0:00:57.1]} 21. Qxb6 {[%clk 0:02:13.2]} 21... Rxb6 {[%clk 0:00:57.7]} 22.
Nd4 {[%clk 0:02:13.7]} 22... h5 {[%clk 0:00:56.4]} 23. Kf1 {[%clk 0:02:03.2]}
23... Bxd4 {[%clk 0:00:55.1]} 24. cxd4 {[%clk 0:02:02.6]} 24... Rab5 {[%clk
0:00:55.3]} 25. Rb1 {[%clk 0:02:00.4]} 25... Rb3 {[%clk 0:00:54.5]} 26. Ke2
{[%clk 0:02:00.3]} 26... Rc6 {[%clk 0:00:51.3]} 27. Kd1 {[%clk 0:01:57.4]} 27...
f5 {[%clk 0:00:46.4]} 28. exf5 {[%clk 0:01:51.9]} 28... gxf5 {[%clk 0:00:47.2]}
29. Rc1 {[%clk 0:01:51.7]} 29... Kf7 {[%clk 0:00:46.8]} 30. Rxc6 {[%clk
0:01:51.7]} 30... bxc6 {[%clk 0:00:47.5]} 31. Kc2 {[%clk 0:01:52.2]} 31... Kf8
{[%clk 0:00:47.1]} 32. Re2 {[%clk 0:01:42.3]} 32... Kf7 {[%clk 0:00:46.4]} 33.
Re3 {[%clk 0:01:36.6]} 33... Rxe3 {[%clk 0:00:44.1]} 34. fxe3 {[%clk 0:01:36.6]}
34... e5 {[%clk 0:00:44.8]} 35. Kc3 {[%clk 0:01:37.5]} 35... Ke6 {[%clk
0:00:44]} 36. Kb4 {[%clk 0:01:37.2]} 36... exd4 {[%clk 0:00:35.2]} 37. e4 {[%clk
0:01:36.6]} 37... fxe4 {[%clk 0:00:34]} 38. Kxa4 {[%clk 0:01:36]} 38... e3
{[%clk 0:00:34.6]} 39. Kb3 {[%clk 0:01:35.8]} 39... e2 {[%clk 0:00:35.3]} 40.
Kc2 {[%clk 0:01:36.3]} 40... e1=Q {[%clk 0:00:35.6]} 0-1

[Event "Early-Titled-Tuesday-Blitz-February-13-2024"]
[Site "Chess.com"]
[Date "2024.02.13"]
[Round "4"]
[White "Ducke13"]
[Black "lluiss"]
[Result "1-0"]
[WhiteElo "2316"]
[BlackElo "2141"]
[TimeControl "180+1"]
[EndTime "8:41:10 PST"]
[Termination "Ducke13 won by resignation"]

1. d4 {[%clk 0:03:00.9]} 1... d5 {[%clk 0:02:53.7]} 2. Nf3 {[%clk 0:02:56.2]}
2... c6 {[%clk 0:02:53.6]} 3. g3 {[%clk 0:02:49.7]} 3... Bf5 {[%clk 0:02:47.5]}
4. c4 {[%clk 0:02:49.1]} 4... e6 {[%clk 0:02:46.1]} 5. Nc3 {[%clk 0:02:45.8]}
5... h6 {[%clk 0:02:45.8]} 6. Qb3 {[%clk 0:02:24.4]} 6... Qb6 {[%clk 0:02:44.5]}
7. c5 {[%clk 0:02:24.1]} 7... Qxb3 {[%clk 0:02:38.2]} 8. axb3 {[%clk 0:02:25]}
8... Nd7 {[%clk 0:02:29.2]} 9. b4 {[%clk 0:02:24.4]} 9... Ngf6 {[%clk
0:01:58.2]} 10. b5 {[%clk 0:02:19.2]} 10... Ne4 {[%clk 0:01:57.4]} 11. bxc6
{[%clk 0:02:16]} 11... bxc6 {[%clk 0:01:56.5]} 12. Ra6 {[%clk 0:02:04.7]} 12...
Nb8 {[%clk 0:01:51]} 13. Ra4 {[%clk 0:02:03.1]} 13... Nxc3 {[%clk 0:01:40.3]}
14. bxc3 {[%clk 0:02:04]} 14... Be4 {[%clk 0:01:40.6]} 15. Bg2 {[%clk
0:02:01.3]} 15... Be7 {[%clk 0:01:40.5]} 16. O-O {[%clk 0:02:00.5]} 16... a6
{[%clk 0:01:17.5]} 17. Bf4 {[%clk 0:01:54.5]} 17... g5 {[%clk 0:01:01.2]} 18.
Be5 {[%clk 0:01:48.8]} 18... O-O {[%clk 0:00:58.2]} 19. Rfa1 {[%clk 0:01:47]}
19... Rc8 {[%clk 0:00:53.1]} 20. Nd2 {[%clk 0:01:32.7]} 20... Bxg2 {[%clk
0:00:52]} 21. Kxg2 {[%clk 0:01:32.5]} 21... Nd7 {[%clk 0:00:43.6]} 22. Bd6
{[%clk 0:01:24.5]} 22... Kf8 {[%clk 0:00:39.7]} 23. Bxe7+ {[%clk 0:01:15.5]}
23... Kxe7 {[%clk 0:00:39.3]} 24. Rxa6 {[%clk 0:01:16.2]} 24... Rxa6 {[%clk
0:00:39.5]} 25. Rxa6 {[%clk 0:01:17]} 25... Rc7 {[%clk 0:00:40.1]} 26. Nb3
{[%clk 0:01:15.5]} 26... Nb8 {[%clk 0:00:37.1]} 27. Rb6 {[%clk 0:01:14.7]} 27...
Nd7 {[%clk 0:00:35.9]} 28. Na5 {[%clk 0:01:09.6]} 28... Ra7 {[%clk 0:00:33]} 29.
Nxc6+ {[%clk 0:01:08.6]} 1-0

[Event "Early-Titled-Tuesday-Blitz-February-13-2024"]
[Site "Chess.com"]
[Date "2024.02.13"]
[Round "4"]
[White "OrtizAnahi2001"]
[Black "RamonManon0g"]
[Result "1-0"]
[WhiteElo "2592"]
[BlackElo "2403"]
[TimeControl "180+1"]
[EndTime "8:41:12 PST"]
[Termination "OrtizAnahi2001 won by resignation"]

1. d4 {[%clk 0:02:55.4]} 1... Nf6 {[%clk 0:02:59.8]} 2. c4 {[%clk 0:02:54.7]}
2... g6 {[%clk 0:03:00.7]} 3. Nc3 {[%clk 0:02:52.4]} 3... d5 {[%clk 0:03:01.6]}
4. cxd5 {[%clk 0:02:52.1]} 4... Nxd5 {[%clk 0:03:02.5]} 5. e4 {[%clk 0:02:51.4]}
5... Nxc3 {[%clk 0:03:02.9]} 6. bxc3 {[%clk 0:02:51.8]} 6... c5 {[%clk
0:03:02.9]} 7. Nf3 {[%clk 0:02:52.1]} 7... Bg7 {[%clk 0:03:02.6]} 8. Be2 {[%clk
0:02:51.6]} 8... Bg4 {[%clk 0:03:01.8]} 9. Be3 {[%clk 0:02:49.9]} 9... O-O
{[%clk 0:03:01]} 10. O-O {[%clk 0:02:49.8]} 10... Nc6 {[%clk 0:02:59.6]} 11. d5
{[%clk 0:02:47.7]} 11... Bxf3 {[%clk 0:02:57.3]} 12. Bxf3 {[%clk 0:02:46.5]}
12... Ne5 {[%clk 0:02:47.4]} 13. Bxc5 {[%clk 0:02:44.8]} 13... Rc8 {[%clk
0:02:09.8]} 14. Bd4 {[%clk 0:02:43.5]} 14... Nxf3+ {[%clk 0:02:00.7]} 15. Qxf3
{[%clk 0:02:44.4]} 15... Bxd4 {[%clk 0:02:00.4]} 16. cxd4 {[%clk 0:02:44.6]}
16... Rc4 {[%clk 0:01:59.2]} 17. Rfd1 {[%clk 0:02:43.6]} 17... Qb6 {[%clk
0:01:58.7]} 18. Rab1 {[%clk 0:02:42.2]} 18... Qa6 {[%clk 0:01:55.7]} 19. Qb3
{[%clk 0:02:42]} 19... b6 {[%clk 0:01:54]} 20. e5 {[%clk 0:02:36.6]} 20... Rfc8
{[%clk 0:01:50.5]} 21. e6 {[%clk 0:02:33.8]} 21... fxe6 {[%clk 0:01:40.1]} 22.
dxe6 {[%clk 0:02:31.3]} 22... Rc3 {[%clk 0:01:36.1]} 23. Qd5 {[%clk 0:02:20]}
23... Qc4 {[%clk 0:01:30.8]} 24. Qd7 {[%clk 0:02:13.2]} 24... Rc7 {[%clk
0:01:22.8]} 25. Qd8+ {[%clk 0:02:11.9]} 25... Kg7 {[%clk 0:01:23.7]} 26. d5
{[%clk 0:02:07.5]} 26... Qf4 {[%clk 0:00:59.8]} 27. d6 {[%clk 0:02:00.5]} 27...
Rc2 {[%clk 0:00:55.1]} 28. Kh1 {[%clk 0:01:29.4]} 28... Qf3 {[%clk 0:00:13.1]}
29. gxf3 {[%clk 0:01:27.2]} 1-0

[Event "Early-Titled-Tuesday-Blitz-February-13-2024"]
[Site "Chess.com"]
[Date "2024.02.13"]
[Round "4"]
[White "WilsonPalencia21"]
[Black "starworld123"]
[Result "0-1"]
[WhiteElo "2592"]
[BlackElo "2832"]
[TimeControl "180+1"]
[EndTime "8:41:18 PST"]
[Termination "starworld123 won on time"]

1. d4 {[%clk 0:02:38.1]} 1... e6 {[%clk 0:03:00.9]} 2. Nf3 {[%clk 0:02:37.8]}
2... d5 {[%clk 0:03:00.6]} 3. c4 {[%clk 0:02:37.3]} 3... Nf6 {[%clk 0:03:00.9]}
4. Nc3 {[%clk 0:02:37.2]} 4... a6 {[%clk 0:03:00.1]} 5. cxd5 {[%clk 0:02:36.8]}
5... exd5 {[%clk 0:03:01]} 6. Bg5 {[%clk 0:02:37.1]} 6... Be6 {[%clk 0:03:01.4]}
7. e3 {[%clk 0:02:37.5]} 7... Nbd7 {[%clk 0:03:01.6]} 8. Qc2 {[%clk 0:02:37.7]}
8... Bd6 {[%clk 0:02:59.9]} 9. Bf4 {[%clk 0:02:38]} 9... Qe7 {[%clk 0:02:58.8]}
10. Be2 {[%clk 0:02:32.5]} 10... O-O {[%clk 0:02:57.5]} 11. O-O {[%clk
0:02:32.4]} 11... Rfe8 {[%clk 0:02:54.6]} 12. Bxd6 {[%clk 0:02:27.8]} 12... Qxd6
{[%clk 0:02:54.7]} 13. Na4 {[%clk 0:02:27.9]} 13... Ne4 {[%clk 0:02:53.8]} 14.
Nd2 {[%clk 0:02:25.3]} 14... Nxd2 {[%clk 0:02:44.4]} 15. Qxd2 {[%clk 0:02:24.8]}
15... Bf5 {[%clk 0:02:35.3]} 16. Rfc1 {[%clk 0:02:23.7]} 16... c6 {[%clk
0:02:33.8]} 17. Bd3 {[%clk 0:02:21.5]} 17... Bxd3 {[%clk 0:02:33.4]} 18. Qxd3
{[%clk 0:02:21.3]} 18... g6 {[%clk 0:02:25.8]} 19. Nc5 {[%clk 0:02:19.5]} 19...
Nxc5 {[%clk 0:02:24.9]} 20. Rxc5 {[%clk 0:02:20.4]} 20... f5 {[%clk 0:02:19]}
21. g3 {[%clk 0:02:18.9]} 21... h5 {[%clk 0:02:18.8]} 22. h4 {[%clk 0:02:16.3]}
22... Re4 {[%clk 0:02:18.5]} 23. Qb3 {[%clk 0:02:11.1]} 23... Qe7 {[%clk
0:02:14.8]} 24. a4 {[%clk 0:01:55]} 24... Rf8 {[%clk 0:02:11]} 25. Re1 {[%clk
0:01:36.1]} 25... Rxd4 {[%clk 0:01:58.2]} 26. exd4 {[%clk 0:01:16.4]} 26...
Qxe1+ {[%clk 0:01:59.1]} 27. Kg2 {[%clk 0:01:15.8]} 27... f4 {[%clk 0:01:41.7]}
28. gxf4 {[%clk 0:01:08.9]} 28... Rxf4 {[%clk 0:01:35.4]} 0-1

[Event "Early-Titled-Tuesday-Blitz-February-13-2024"]
[Site "Chess.com"]
[Date "2024.02.13"]
[Round "4"]
[White "BeardedNM"]
[Black "PositionalPanther"]
[Result "0-1"]
[WhiteElo "2205"]
[BlackElo "2420"]
[TimeControl "180+1"]
[EndTime "8:41:21 PST"]
[Termination "PositionalPanther won by resignation"]

1. e4 {[%clk 0:03:00.9]} 1... e6 {[%clk 0:02:56.3]} 2. d4 {[%clk 0:03:00.9]}
2... d5 {[%clk 0:02:57]} 3. e5 {[%clk 0:03:01.5]} 3... c5 {[%clk 0:02:56]} 4. c3
{[%clk 0:03:02.2]} 4... Nc6 {[%clk 0:02:54.6]} 5. Nf3 {[%clk 0:03:02.8]} 5...
Bd7 {[%clk 0:02:54.5]} 6. Be2 {[%clk 0:03:03.1]} 6... Nge7 {[%clk 0:02:52.3]} 7.
O-O {[%clk 0:03:02.4]} 7... cxd4 {[%clk 0:02:53]} 8. cxd4 {[%clk 0:03:02.2]}
8... Nf5 {[%clk 0:02:53.7]} 9. Nc3 {[%clk 0:02:59.1]} 9... Rc8 {[%clk
0:02:50.5]} 10. Be3 {[%clk 0:02:56.7]} 10... Nxe3 {[%clk 0:02:43.1]} 11. fxe3
{[%clk 0:02:56.5]} 11... Na5 {[%clk 0:02:43.6]} 12. Rc1 {[%clk 0:02:45.2]} 12...
Be7 {[%clk 0:02:43.2]} 13. Bd3 {[%clk 0:02:44.5]} 13... Qb6 {[%clk 0:02:41.4]}
14. b3 {[%clk 0:02:26.5]} 14... Ba3 {[%clk 0:02:18.3]} 15. Rc2 {[%clk
0:02:24.6]} 15... Qd8 {[%clk 0:02:16.3]} 16. Qe1 {[%clk 0:01:55.3]} 16... a6
{[%clk 0:02:10.8]} 17. Qg3 {[%clk 0:01:49]} 17... Nc6 {[%clk 0:01:51.4]} 18.
Qxg7 {[%clk 0:01:43]} 18... Rf8 {[%clk 0:01:52]} 19. Ng5 {[%clk 0:01:33.7]}
19... Qe7 {[%clk 0:01:49.4]} 20. Nxh7 {[%clk 0:01:28.4]} 20... Nb4 {[%clk
0:01:49.5]} 21. Nxf8 {[%clk 0:00:29.8]} 21... Qxf8 {[%clk 0:01:50.4]} 22. Qxf8+
{[%clk 0:00:19.6]} 22... Kxf8 {[%clk 0:01:51.3]} 23. Bg6 {[%clk 0:00:19.8]}
23... Nxc2 {[%clk 0:01:49.3]} 24. Rxf7+ {[%clk 0:00:19.9]} 24... Kg8 {[%clk
0:01:48.4]} 25. Rxd7 {[%clk 0:00:17.5]} 25... Rxc3 {[%clk 0:01:47.6]} 26. Bf7+
{[%clk 0:00:17.2]} 26... Kf8 {[%clk 0:01:47]} 27. Bxe6 {[%clk 0:00:17.4]} 27...
Rxe3 {[%clk 0:01:43.5]} 28. Bxd5 {[%clk 0:00:14.7]} 28... Nxd4 {[%clk
0:01:40.7]} 29. Bxb7 {[%clk 0:00:12.9]} 29... Bc5 {[%clk 0:01:41.2]} 30. h4
{[%clk 0:00:11.8]} 30... Rxe5 {[%clk 0:01:35.4]} 31. Rd5 {[%clk 0:00:10.4]}
31... Nc6+ {[%clk 0:01:29.1]} 32. Rxc5 {[%clk 0:00:07.9]} 32... Rxc5 {[%clk
0:01:27.9]} 0-1

[Event "Early-Titled-Tuesday-Blitz-February-13-2024"]
[Site "Chess.com"]
[Date "2024.02.13"]
[Round "4"]
[White "DAVIDHDZSTS"]
[Black "baki83"]
[Result "0-1"]
[WhiteElo "1910"]
[BlackElo "2846"]
[TimeControl "180+1"]
[EndTime "8:41:24 PST"]
[Termination "baki83 won by resignation"]

1. d4 {[%clk 0:02:57.7]} 1... d5 {[%clk 0:02:59.9]} 2. Nc3 {[%clk 0:02:57.1]}
2... Bf5 {[%clk 0:02:58.7]} 3. f3 {[%clk 0:02:53.2]} 3... Bg6 {[%clk 0:02:57.8]}
4. e4 {[%clk 0:02:48.9]} 4... dxe4 {[%clk 0:02:57.7]} 5. fxe4 {[%clk 0:02:49.8]}
5... e5 {[%clk 0:02:57.8]} 6. Nf3 {[%clk 0:02:47.6]} 6... exd4 {[%clk
0:02:56.9]} 7. Qxd4 {[%clk 0:02:45.1]} 7... Qxd4 {[%clk 0:02:53.3]} 8. Nxd4
{[%clk 0:02:46]} 8... c6 {[%clk 0:02:51.6]} 9. Bf4 {[%clk 0:02:39.5]} 9... Nd7
{[%clk 0:02:48]} 10. O-O-O {[%clk 0:02:37.6]} 10... Bb4 {[%clk 0:02:44.3]} 11.
Nf5 {[%clk 0:02:28.5]} 11... Bxf5 {[%clk 0:02:40.6]} 12. exf5 {[%clk 0:02:27.6]}
12... Ngf6 {[%clk 0:02:39.9]} 13. Re1+ {[%clk 0:02:22.4]} 13... Kd8 {[%clk
0:02:39.7]} 14. Bc4 {[%clk 0:02:19.5]} 14... Bxc3 {[%clk 0:02:39.5]} 15. bxc3
{[%clk 0:02:19.8]} 15... Nd5 {[%clk 0:02:39.9]} 16. Bxd5 {[%clk 0:02:18]} 16...
cxd5 {[%clk 0:02:40.2]} 17. Bd6 {[%clk 0:02:12.8]} 17... Rc8 {[%clk 0:02:34.2]}
18. Be7+ {[%clk 0:02:08.9]} 18... Kc7 {[%clk 0:02:34.3]} 19. f6 {[%clk
0:02:04.6]} 19... gxf6 {[%clk 0:02:32.9]} 20. Rhf1 {[%clk 0:02:04]} 20... Rce8
{[%clk 0:02:29.2]} 21. Kd2 {[%clk 0:01:59.1]} 21... Rhg8 {[%clk 0:02:28.5]} 22.
g3 {[%clk 0:01:57.5]} 22... a6 {[%clk 0:02:08.4]} 23. Bxf6 {[%clk 0:01:55.1]}
23... Rxe1 {[%clk 0:02:07.3]} 24. Kxe1 {[%clk 0:01:54.3]} 24... Kd6 {[%clk
0:02:05]} 25. Bd4 {[%clk 0:01:50.6]} 25... Ke6 {[%clk 0:02:01.5]} 26. Kd2 {[%clk
0:01:49.9]} 26... f6 {[%clk 0:01:53.9]} 27. Rb1 {[%clk 0:01:46.6]} 27... b6
{[%clk 0:01:49.5]} 28. Bxb6 {[%clk 0:01:32.1]} 28... Rb8 {[%clk 0:01:48.5]} 29.
Re1+ {[%clk 0:01:32.3]} 29... Ne5 {[%clk 0:01:48.7]} 30. Bc7 {[%clk 0:01:28]}
30... Rb2 {[%clk 0:01:46.1]} 31. a3 {[%clk 0:01:23.7]} 31... Ra2 {[%clk
0:01:41.2]} 32. g4 {[%clk 0:01:21.2]} 32... h6 {[%clk 0:01:40.1]} 33. h4 {[%clk
0:01:18.3]} 33... Rxa3 {[%clk 0:01:35.3]} 34. g5 {[%clk 0:01:15.4]} 34... hxg5
{[%clk 0:01:35.2]} 35. hxg5 {[%clk 0:01:14.7]} 35... Kf7 {[%clk 0:01:25.8]} 36.
Bxe5 {[%clk 0:01:10.5]} 36... fxe5 {[%clk 0:01:26.1]} 37. Rxe5 {[%clk
0:01:10.1]} 37... Ra5 {[%clk 0:01:25.9]} 38. c4 {[%clk 0:01:09]} 38... Rc5
{[%clk 0:01:25.4]} 39. cxd5 {[%clk 0:01:00.7]} 39... a5 {[%clk 0:01:25.7]} 40.
Kd3 {[%clk 0:00:55]} 40... a4 {[%clk 0:01:26]} 41. Re6 {[%clk 0:00:52.9]} 41...
Rxd5+ {[%clk 0:01:25.6]} 42. Ke4 {[%clk 0:00:52.7]} 42... Kxe6 {[%clk
0:01:26.1]} 43. c4 {[%clk 0:00:52.2]} 43... Rxg5 {[%clk 0:01:25.9]} 0-1

[Event "Early-Titled-Tuesday-Blitz-February-13-2024"]
[Site "Chess.com"]
[Date "2024.02.13"]
[Round "4"]
[White "Binary010"]
[Black "Abund"]
[Result "1-0"]
[WhiteElo "2904"]
[BlackElo "2758"]
[TimeControl "180+1"]
[EndTime "8:41:31 PST"]
[Termination "Binary010 won by resignation"]

1. e4 {[%clk 0:03:00.9]} 1... c6 {[%clk 0:03:00.1]} 2. d4 {[%clk 0:03:00.7]}
2... d5 {[%clk 0:03:01]} 3. e5 {[%clk 0:03:01.2]} 3... c5 {[%clk 0:03:01.4]} 4.
Nf3 {[%clk 0:03:00]} 4... cxd4 {[%clk 0:03:01.7]} 5. Qxd4 {[%clk 0:03:00.9]}
5... Nc6 {[%clk 0:03:01.5]} 6. Qf4 {[%clk 0:03:01]} 6... e6 {[%clk 0:03:01.8]}
7. Bd3 {[%clk 0:02:59.8]} 7... Nb4 {[%clk 0:02:59.2]} 8. Nc3 {[%clk 0:02:59.7]}
8... Nxd3+ {[%clk 0:02:58.2]} 9. cxd3 {[%clk 0:03:00.6]} 9... Ne7 {[%clk
0:02:49.8]} 10. Bd2 {[%clk 0:02:57.6]} 10... Ng6 {[%clk 0:02:34.9]} 11. Qg3
{[%clk 0:02:57.4]} 11... Be7 {[%clk 0:02:34.9]} 12. h4 {[%clk 0:02:53.9]} 12...
h5 {[%clk 0:02:34.8]} 13. Ne2 {[%clk 0:02:53.4]} 13... Bd7 {[%clk 0:02:26]} 14.
Nf4 {[%clk 0:02:48.6]} 14... Nxf4 {[%clk 0:02:24.3]} 15. Bxf4 {[%clk 0:02:48.9]}
15... g6 {[%clk 0:02:12.2]} 16. O-O {[%clk 0:02:47.9]} 16... Qb6 {[%clk
0:02:05.9]} 17. Bg5 {[%clk 0:02:38.3]} 17... Bxg5 {[%clk 0:01:52.7]} 18. Qxg5
{[%clk 0:02:38.3]} 18... d4 {[%clk 0:01:51.1]} 19. b3 {[%clk 0:02:15.2]} 19...
Bc6 {[%clk 0:01:49.5]} 20. Qf6 {[%clk 0:02:14.2]} 20... Rf8 {[%clk 0:01:48.1]}
21. Ng5 {[%clk 0:02:10.3]} 21... Qd8 {[%clk 0:01:45.7]} 22. Qf4 {[%clk 0:01:41]}
22... Qd5 {[%clk 0:01:44.5]} 23. Ne4 {[%clk 0:01:40.1]} 23... O-O-O {[%clk
0:01:44.9]} 24. Rac1 {[%clk 0:01:36.8]} 24... Kb8 {[%clk 0:01:29.7]} 25. Rc5
{[%clk 0:01:36.4]} 25... Qd7 {[%clk 0:01:29.6]} 26. Nd6 {[%clk 0:01:24.8]} 26...
f6 {[%clk 0:01:27]} 27. Nc4 {[%clk 0:01:15.5]} 27... g5 {[%clk 0:01:23.3]} 28.
Qh2 {[%clk 0:01:05.5]} 28... Ka8 {[%clk 0:01:08]} 29. exf6 {[%clk 0:00:50.8]}
29... gxh4 {[%clk 0:01:07.2]} 30. Ra5 {[%clk 0:00:45.1]} 30... Qc7 {[%clk
0:00:42.9]} 31. Qxc7 {[%clk 0:00:42.7]} 1-0

[Event "Early-Titled-Tuesday-Blitz-February-13-2024"]
[Site "Chess.com"]
[Date "2024.02.13"]
[Round "4"]
[White "Stewie_89"]
[Black "fabianvivasz"]
[Result "1-0"]
[WhiteElo "2580"]
[BlackElo "2393"]
[TimeControl "180+1"]
[EndTime "8:41:34 PST"]
[Termination "Stewie_89 won by resignation"]

1. e4 {[%clk 0:03:00.9]} 1... e5 {[%clk 0:02:55.3]} 2. Nf3 {[%clk 0:03:00.6]}
2... Nc6 {[%clk 0:02:54.6]} 3. Bb5 {[%clk 0:03:01.1]} 3... Nf6 {[%clk
0:02:53.2]} 4. O-O {[%clk 0:03:00.5]} 4... Nxe4 {[%clk 0:02:53.1]} 5. d4 {[%clk
0:03:00.6]} 5... Nd6 {[%clk 0:02:52.6]} 6. dxe5 {[%clk 0:03:01.3]} 6... Nxb5
{[%clk 0:02:51.6]} 7. a4 {[%clk 0:03:02]} 7... Nbd4 {[%clk 0:02:51.2]} 8. Nxd4
{[%clk 0:03:02]} 8... d5 {[%clk 0:02:47.7]} 9. exd6 {[%clk 0:03:00.8]} 9... Nxd4
{[%clk 0:02:42.9]} 10. Qxd4 {[%clk 0:03:01.7]} 10... Qxd6 {[%clk 0:02:43]} 11.
Qe3+ {[%clk 0:03:02.3]} 11... Be6 {[%clk 0:02:14]} 12. Nc3 {[%clk 0:03:01.9]}
12... Qb6 {[%clk 0:02:08.2]} 13. Qg3 {[%clk 0:02:54.5]} 13... Bd6 {[%clk
0:01:56.1]} 14. Qxg7 {[%clk 0:02:27.7]} 14... O-O-O {[%clk 0:01:55]} 15. Be3
{[%clk 0:02:14.9]} 15... Bc5 {[%clk 0:00:59.6]} 16. a5 {[%clk 0:02:07.3]} 16...
Qc6 {[%clk 0:00:59.8]} 17. Qh6 {[%clk 0:02:02.7]} 17... Rhg8 {[%clk 0:00:55.3]}
18. f3 {[%clk 0:01:45.7]} 18... Rd2 {[%clk 0:00:43]} 19. Rf2 {[%clk 0:01:40]}
19... Rxf2 {[%clk 0:00:09.4]} 20. Kxf2 {[%clk 0:01:37.7]} 20... Rg6 {[%clk
0:00:04.9]} 21. Qf4 {[%clk 0:01:35.6]} 21... Bd6 {[%clk 0:00:05.2]} 22. Qh4
{[%clk 0:01:31.7]} 22... Bc5 {[%clk 0:00:03.8]} 23. Re1 {[%clk 0:01:25.7]} 23...
Qd6 {[%clk 0:00:03.6]} 24. Ne4 {[%clk 0:01:09.5]} 24... Bxe3+ {[%clk 0:00:03.7]}
25. Rxe3 {[%clk 0:01:10.3]} 25... Qd4 {[%clk 0:00:04.1]} 26. c3 {[%clk 0:01:10]}
26... Qc5 {[%clk 0:00:03.4]} 27. Nxc5 {[%clk 0:01:09.4]} 1-0